fUST/lending_fUST_20260513
["ID","MTS","AMOUNT","RATE_DAILY","PERIOD"]
[422133904,1778610644000,-500.0,0.00010958,2]
[422133914,1778610644000,-500.0,0.00010958,2]
[422133937,1778610644000,-500.0,0.00010958,2]
[422133928,1778610644000,-1066.3,0.00010958,2]
[422133929,1778610644000,-500.0,0.00010958,2]
[422133927,1778610644000,-500.0,0.00010958,2]
[422133917,1778610644000,-1990.55,0.00010958,2]
[422133920,1778610644000,-500.0,0.00010958,2]
[422133925,1778610644000,-168.185111,0.00010958,2]
[422133915,1778610644000,-500.0,0.00010958,2]
[422133919,1778610644000,-1620.38,0.00010958,2]
[422133924,1778610644000,-500.0,0.00010958,2]
[422133912,1778610644000,-3364.88,0.00010958,2]
[422133916,1778610644000,-500.0,0.00010958,2]
[422133918,1778610644000,-168.185111,0.00010958,2]
[422134000,1778610645000,-500.0,0.00010958,2]
[422134005,1778610645000,-500.0,0.00010958,2]
[422134001,1778610645000,-500.0,0.00010958,2]
[422134003,1778610645000,-500.0,0.00010958,2]
[422133990,1778610645000,-500.0,0.00010958,2]
[422133999,1778610645000,-500.0,0.00010958,2]
[422133994,1778610645000,-500.0,0.00010958,2]
[422133991,1778610645000,-500.0,0.00010958,2]
[422133992,1778610645000,-500.0,0.00010958,2]
[422133995,1778610645000,-637.57,0.00010958,2]
[422134002,1778610645000,-500.0,0.00010958,2]
[422134004,1778610645000,-500.0,0.00010958,2]
[422134022,1778610645000,-500.0,0.00010958,2]
[422134006,1778610645000,-500.0,0.00010958,2]
[422134007,1778610645000,-500.0,0.00010958,2]
[422134009,1778610645000,-500.0,0.00010958,2]
[422134008,1778610645000,-500.0,0.00010958,2]
[422134011,1778610645000,-500.0,0.00010958,2]
[422134012,1778610645000,-500.0,0.00010958,2]
[422134013,1778610645000,-500.0,0.00010958,2]
[422134014,1778610645000,-500.0,0.00010958,2]
[422134018,1778610645000,-3439.69,0.00010958,2]
[422134015,1778610645000,-500.0,0.00010958,2]
[422134021,1778610645000,-151.0,0.00010958,2]
[422134020,1778610645000,-500.0,0.00010958,2]
[422133996,1778610645000,-500.0,0.00010958,2]
[422134010,1778610645000,-500.0,0.00010958,2]
[422133993,1778610645000,-500.0,0.00010958,2]
[422133977,1778610645000,-955.07,0.00010958,2]
[422133988,1778610645000,-500.0,0.00010958,2]
[422134019,1778610645000,-687.27,0.00010958,2]
[422133962,1778610645000,-500.0,0.00010958,2]
[422133971,1778610645000,-500.0,0.00010958,2]
[422133963,1778610645000,-500.0,0.00010958,2]
[422133969,1778610645000,-364.06246021,0.00010958,2]
[422133967,1778610645000,-500.0,0.00010958,2]
[422133970,1778610645000,-504.95121085,0.00010958,2]
[422133973,1778610645000,-500.0,0.00010958,2]
[422133964,1778610645000,-500.0,0.00010958,2]
[422133974,1778610645000,-541.20787756,0.00010958,2]
[422133965,1778610645000,-500.0,0.00010958,2]
[422133966,1778610645000,-500.0,0.00010958,2]
[422133968,1778610645000,-500.0,0.00010958,2]
[422133972,1778610645000,-500.0,0.00010958,2]
[422133975,1778610645000,-500.0,0.00010958,2]
[422133978,1778610645000,-500.0,0.00010958,2]
[422133980,1778610645000,-500.0,0.00010958,2]
[422133982,1778610645000,-500.0,0.00010958,2]
[422133976,1778610645000,-500.0,0.00010958,2]
[422133979,1778610645000,-500.0,0.00010958,2]
[422133983,1778610645000,-500.0,0.00010958,2]
[422133981,1778610645000,-500.0,0.00010958,2]
[422133984,1778610645000,-491.00268541,0.00010958,2]
[422133985,1778610645000,-3379.09201232,0.00010958,2]
[422133987,1778610645000,-2033.83,0.00010958,2]
[422133997,1778610645000,-500.0,0.00010958,2]
[422133986,1778610645000,-500.0,0.00010958,2]
[422133989,1778610645000,-500.0,0.00010958,2]
[422134016,1778610645000,-731.42,0.00010958,2]
[422133998,1778610645000,-500.0,0.00010958,2]
[422134024,1778610645000,-500.0,0.00010958,2]
[422134078,1778610645000,-250.0,0.00011,2]
[422134057,1778610645000,-230.422198,0.00010959,2]
[422134058,1778610645000,-230.422198,0.00010959,2]
[422134056,1778610645000,-230.422198,0.00010959,2]
[422134060,1778610645000,-230.422198,0.00010959,2]
[422134070,1778610645000,-230.422207,0.00010959,2]
[422134061,1778610645000,-230.422198,0.00010959,2]
[422134059,1778610645000,-230.422198,0.00010959,2]
[422134062,1778610645000,-230.422198,0.00010959,2]
[422134063,1778610645000,-230.422198,0.00010959,2]
[422134064,1778610645000,-230.422198,0.00010959,2]
[422134065,1778610645000,-230.422198,0.00010959,2]
[422134067,1778610645000,-230.422198,0.00010959,2]
[422134069,1778610645000,-230.422198,0.00010959,2]
[422134066,1778610645000,-230.422198,0.00010959,2]
[422134071,1778610645000,-151.432893,0.00010959,2]
[422134075,1778610645000,-250.0,0.00011,2]
[422134073,1778610645000,-155.0,0.00010999,2]
[422134082,1778610645000,-250.0,0.00011,2]
[422134072,1778610645000,-1158.40312111,0.00010959,2]
[422134074,1778610645000,-151.0,0.00011,2]
[422134076,1778610645000,-250.0,0.00011,2]
[422134081,1778610645000,-250.0,0.00011,2]
[422134080,1778610645000,-250.0,0.00011,2]
[422134077,1778610645000,-250.0,0.00011,2]
[422134079,1778610645000,-250.0,0.00011,2]
[422134023,1778610645000,-500.0,0.00010958,2]
[422134054,1778610645000,-230.422198,0.00010959,2]
[422134050,1778610645000,-15000.0,0.00010959,2]
[422134068,1778610645000,-230.422198,0.00010959,2]
[422134048,1778610645000,-167.79,0.00010959,2]
[422134051,1778610645000,-230.422198,0.00010959,2]
[422134025,1778610645000,-151.0,0.00010958,2]
[422134026,1778610645000,-500.0,0.00010958,2]
[422134033,1778610645000,-151.0,0.00010958,2]
[422134032,1778610645000,-500.0,0.00010958,2]
[422134030,1778610645000,-292.03093962,0.00010958,2]
[422134029,1778610645000,-151.0,0.00010958,2]
[422134028,1778610645000,-849.96,0.00010958,2]
[422134034,1778610645000,-500.0,0.00010958,2]
[422134027,1778610645000,-151.0,0.00010958,2]
[422134036,1778610645000,-500.0,0.00010958,2]
[422134047,1778610645000,-500.0,0.00010958,2]
[422134046,1778610645000,-500.0,0.00010958,2]
[422134035,1778610645000,-500.0,0.00010958,2]
[422134031,1778610645000,-500.0,0.00010958,2]
[422134055,1778610645000,-230.422198,0.00010959,2]
[422134037,1778610645000,-853.45,0.00010958,2]
[422134049,1778610645000,-167.8,0.00010959,2]
[422134052,1778610645000,-230.422198,0.00010959,2]
[422134053,1778610645000,-230.422198,0.00010959,2]
[422134038,1778610645000,-294.28002911,0.00010958,2]
[422134042,1778610645000,-500.0,0.00010958,2]
[422134045,1778610645000,-500.0,0.00010958,2]
[422134043,1778610645000,-504.57510291,0.00010958,2]
[422134040,1778610645000,-500.0,0.00010958,2]
[422134044,1778610645000,-500.0,0.00010958,2]
[422134041,1778610645000,-3712.57,0.00010958,2]
[422134039,1778610645000,-633.9386,0.00010958,2]
[422134104,1778610646000,-151.0,0.00011003,2]
[422134107,1778610646000,-172.17522243,0.00011003,2]
[422134105,1778610646000,-151.0,0.00011003,2]
[422134100,1778610646000,-151.0,0.00011003,2]
[422134102,1778610646000,-151.0,0.00011003,2]
[422134103,1778610646000,-151.0,0.00011003,2]
[422134121,1778610646000,-155.0,0.00011192,2]
[422134108,1778610646000,-155.0,0.00011035,2]
[422134106,1778610646000,-151.0,0.00011003,2]
[422134112,1778610646000,-1481.57575422,0.00011092,2]
[422134113,1778610646000,-864.0,0.00011105,2]
[422134099,1778610646000,-151.0,0.00011003,2]
[422134101,1778610646000,-151.0,0.00011003,2]
[422134098,1778610646000,-151.0,0.00011003,2]
[422134083,1778610646000,-257.6,0.00011,2]
[422134090,1778610646000,-151.0,0.00011003,2]
[422134088,1778610646000,-163.09729822,0.00011003,2]
[422134087,1778610646000,-537.6845,0.00011003,2]
[422134089,1778610646000,-151.0,0.00011003,2]
[422134086,1778610646000,-151.0,0.00011,2]
[422134084,1778610646000,-151.0,0.00011,2]
[422134095,1778610646000,-151.0,0.00011003,2]
[422134092,1778610646000,-151.0,0.00011003,2]
[422134096,1778610646000,-151.0,0.00011003,2]
[422134094,1778610646000,-151.0,0.00011003,2]
[422134093,1778610646000,-151.0,0.00011003,2]
[422134085,1778610646000,-151.0,0.00011,2]
[422134123,1778610646000,-200.0,0.00011231,2]
[422134097,1778610646000,-151.0,0.00011003,2]
[422134115,1778610646000,-155.0,0.00011114,2]
[422134091,1778610646000,-537.6845,0.00011003,2]
[422134109,1778610646000,-154.0,0.00011037,21]
[422134144,1778610646000,-500.0,0.00011232,2]
[422134142,1778610646000,-501.42890604,0.00011232,2]
[422134141,1778610646000,-500.0,0.00011232,2]
[422134139,1778610646000,-500.0,0.00011232,2]
[422134148,1778610646000,-15101.60495406,0.00011232,2]
[422134138,1778610646000,-500.0,0.00011232,2]
[422134147,1778610646000,-500.0,0.00011232,2]
[422134146,1778610646000,-500.0,0.00011232,2]
[422134145,1778610646000,-500.0,0.00011232,2]
[422134133,1778610646000,-862.525036,0.00011232,2]
[422134132,1778610646000,-500.0,0.00011232,2]
[422134135,1778610646000,-852.358942,0.00011232,2]
[422134136,1778610646000,-1655.6715,0.00011232,2]
[422134143,1778610646000,-500.0,0.00011232,2]
[422134131,1778610646000,-183.50769677,0.00011232,2]
[422134134,1778610646000,-500.0,0.00011232,2]
[422134130,1778610646000,-500.0,0.00011232,2]
[422134126,1778610646000,-671.8427,0.00011232,2]
[422134129,1778610646000,-500.0,0.00011232,2]
[422134128,1778610646000,-500.0,0.00011232,2]
[422134127,1778610646000,-590.0,0.00011232,2]
[422134125,1778610646000,-200.0,0.00011231,2]
[422134119,1778610646000,-599.60298507,0.00011168,2]
[422134124,1778610646000,-200.0,0.00011231,2]
[422134111,1778610646000,-557.5788265,0.00011058,2]
[422134117,1778610646000,-264.11291405,0.00011138,2]
[422134110,1778610646000,-587.0,0.00011038,2]
[422134114,1778610646000,-578.20924308,0.00011113,2]
[422134137,1778610646000,-500.0,0.00011232,2]
[422134122,1778610646000,-621.78829552,0.00011223,2]
[422134150,1778610647000,-1222.83848132,0.00010848,2]
[422134149,1778610647000,-152.0,8.473e-05,7]
[422134172,1778611384000,9839.87709203,8e-05,10]
[422134173,1778611566000,5000.0,5e-05,2]
[422134178,1778611676000,10000.0,0.00014,30]
[422134179,1778611687000,10000.0,0.00014,30]
[422134182,1778611757000,10000.0,0.00014,30]
[422134202,1778611832000,-2753.03753879,7.882e-05,2]
[422134201,1778611832000,-2246.96246121,7.882e-05,2]
[422134203,1778611832000,-1200.0,7.961e-05,2]
[422134204,1778611832000,-2476.027064,7.962e-05,2]
[422134206,1778611832000,-1093.98275846,7.962e-05,2]
[422134205,1778611832000,-1215.88244051,7.962e-05,2]
[422134517,1778611838000,-6910.85848038,8.858e-05,2]
[422134505,1778611838000,-1680.0,8.757e-05,2]
[422134502,1778611838000,-2943.3550984,8.658e-05,2]
[422134498,1778611838000,-152.0,8.47e-05,7]
[422134503,1778611838000,-500.0,8.675e-05,2]
[422134500,1778611838000,-152.0,8.47e-05,7]
[422134511,1778611838000,-420.0,8.798e-05,2]
[422134515,1778611838000,-420.0,8.798e-05,2]
[422134485,1778611838000,-214.10773703,7.962e-05,2]
[422134507,1778611838000,-6214.93319866,8.758e-05,2]
[422134497,1778611838000,-376.48315061,8.125e-05,2]
[422134495,1778611838000,-5617.18544763,8e-05,10]
[422134519,1778611838000,-7283.47504652,8.958e-05,2]
[422134487,1778611838000,-300.0,7.998e-05,2]
[422134493,1778611838000,-300.0,7.998e-05,2]
[422134489,1778611838000,-300.0,7.998e-05,2]
[422134491,1778611838000,-300.0,7.998e-05,2]
[422134509,1778611838000,-420.0,8.798e-05,2]
[422134521,1778611838000,-300.0,9.037e-05,2]
[422134513,1778611838000,-420.0,8.798e-05,2]
[422134532,1778611838000,-300.0,9.037e-05,2]
[422134534,1778611838000,-300.0,9.037e-05,2]
[422134550,1778611838000,-201.39734285,9.6e-05,2]
[422134548,1778611838000,-200.0,9.589e-05,2]
[422134547,1778611838000,-8305.31026521,9.158e-05,2]
[422134545,1778611838000,-10000.0,9.123e-05,2]
[422134544,1778611838000,-7606.78376218,9.058e-05,2]
[422134543,1778611838000,-300.0,9.037e-05,2]
[422134546,1778611838000,-500.0,9.132e-05,2]
[422134542,1778611838000,-300.0,9.037e-05,2]
[422134549,1778611838000,-162.10284032,9.6e-05,2]
[422134529,1778611838000,-300.0,9.037e-05,2]
[422134540,1778611838000,-300.0,9.037e-05,2]
[422134527,1778611838000,-300.0,9.037e-05,2]
[422134530,1778611838000,-300.0,9.037e-05,2]
[422134525,1778611838000,-300.0,9.037e-05,2]
[422134539,1778611838000,-300.0,9.037e-05,2]
[422134523,1778611838000,-300.0,9.037e-05,2]
[422134536,1778611838000,-300.0,9.037e-05,2]
[422134541,1778611838000,-300.0,9.037e-05,2]
[422134538,1778611838000,-300.0,9.037e-05,2]
[422134594,1778611839000,-500.0,0.00010135,2]
[422134593,1778611839000,-500.0,0.00010135,2]
[422134589,1778611839000,-500.0,0.00010135,2]
[422134588,1778611839000,-500.0,0.00010135,2]
[422134582,1778611839000,-500.0,0.00010135,2]
[422134590,1778611839000,-500.0,0.00010135,2]
[422134585,1778611839000,-153.8706276,0.00010135,2]
[422134583,1778611839000,-500.0,0.00010135,2]
[422134586,1778611839000,-500.0,0.00010135,2]
[422134587,1778611839000,-500.0,0.00010135,2]
[422134605,1778611839000,-500.0,0.00010135,2]
[422134584,1778611839000,-500.0,0.00010135,2]
[422134604,1778611839000,-500.0,0.00010135,2]
[422134607,1778611839000,-500.0,0.00010135,2]
[422134596,1778611839000,-533.79193303,0.00010135,2]
[422134598,1778611839000,-500.0,0.00010135,2]
[422134595,1778611839000,-500.0,0.00010135,2]
[422134597,1778611839000,-500.0,0.00010135,2]
[422134600,1778611839000,-500.0,0.00010135,2]
[422134601,1778611839000,-500.0,0.00010135,2]
[422134602,1778611839000,-500.0,0.00010135,2]
[422134603,1778611839000,-500.0,0.00010135,2]
[422134580,1778611839000,-500.0,0.00010095,2]
[422134617,1778611839000,-500.0,0.00010136,2]
[422134618,1778611839000,-500.0,0.00010136,2]
[422134611,1778611839000,-500.0,0.00010135,2]
[422134606,1778611839000,-500.0,0.00010135,2]
[422134608,1778611839000,-500.0,0.00010135,2]
[422134599,1778611839000,-500.0,0.00010135,2]
[422134592,1778611839000,-500.0,0.00010135,2]
[422134569,1778611839000,-151.0,0.0001,2]
[422134581,1778611839000,-444.25011772,0.00010125,2]
[422134609,1778611839000,-500.0,0.00010135,2]
[422134553,1778611839000,-587.0,9.678e-05,2]
[422134554,1778611839000,-20068.96132779,9.713e-05,2]
[422134551,1778611839000,-192.1141651,9.6e-05,2]
[422134552,1778611839000,-221.08644735,9.6e-05,2]
[422134556,1778611839000,-182.17730022,9.821e-05,2]
[422134555,1778611839000,-500.0,9.821e-05,2]
[422134567,1778611839000,-151.0,0.0001,2]
[422134566,1778611839000,-151.0,0.0001,2]
[422134557,1778611839000,-600.0,9.906e-05,2]
[422134558,1778611839000,-151.0,0.0001,2]
[422134559,1778611839000,-151.0,0.0001,2]
[422134561,1778611839000,-181.98350722,0.0001,2]
[422134562,1778611839000,-151.0,0.0001,2]
[422134560,1778611839000,-151.0,0.0001,2]
[422134564,1778611839000,-151.0,0.0001,2]
[422134565,1778611839000,-151.0,0.0001,2]
[422134563,1778611839000,-151.0,0.0001,2]
[422134568,1778611839000,-151.0,0.0001,2]
[422134571,1778611839000,-151.0,0.0001,2]
[422134570,1778611839000,-151.0,0.0001,2]
[422134579,1778611839000,-182.17730019,0.00010005,2]
[422134572,1778611839000,-151.0,0.0001,2]
[422134574,1778611839000,-151.0,0.0001,2]
[422134573,1778611839000,-151.0,0.0001,2]
[422134578,1778611839000,-174.33170745,0.0001,2]
[422134576,1778611839000,-151.0,0.0001,2]
[422134577,1778611839000,-151.0,0.0001,2]
[422134575,1778611839000,-151.0,0.0001,2]
[422134591,1778611839000,-500.0,0.00010135,2]
[422134610,1778611839000,-500.0,0.00010135,2]
[422134668,1778611839000,-599.60298507,0.00010734,2]
[422134616,1778611839000,-325.72465775,0.00010136,2]
[422134649,1778611839000,-911.0012822,0.00010136,2]
[422134658,1778611839000,-166.213,0.0001045,2]
[422134650,1778611839000,-182.17730019,0.0001029,2]
[422134651,1778611839000,-2202.0,0.0001045,2]
[422134652,1778611839000,-1412.0,0.0001045,2]
[422134654,1778611839000,-741.0,0.0001045,2]
[422134656,1778611839000,-185.0,0.0001045,2]
[422134653,1778611839000,-443.0,0.0001045,2]
[422134655,1778611839000,-647.0,0.0001045,2]
[422134660,1778611839000,-537.6845,0.00010569,2]
[422134670,1778611839000,-325.7699083,0.00010834,2]
[422134669,1778611839000,-621.78829552,0.00010789,2]
[422134662,1778611839000,-182.17730019,0.00010574,2]
[422134663,1778611839000,-151.0,0.00010607,2]
[422134666,1778611839000,-578.20924308,0.00010679,2]
[422134659,1778611839000,-186.01224606,0.00010569,2]
[422134665,1778611839000,-823.0,0.00010645,2]
[422134661,1778611839000,-233.23247172,0.00010569,2]
[422134664,1778611839000,-557.5788265,0.00010624,2]
[422134667,1778611839000,-256.81899257,0.00010694,2]
[422134672,1778611839000,-182.17730019,0.00010858,2]
[422134673,1778611839000,-720.0,0.00010897,2]
[422134676,1778611839000,-19768.28052403,0.00010919,2]
[422134675,1778611839000,-35081.8133361,0.000109,2]
[422134679,1778611839000,-693.3919763,0.00010954,2]
[422134677,1778611839000,-325.7699085,0.00010949,2]
[422134680,1778611839000,-480.0,0.00010956,2]
[422134678,1778611839000,-151.0,0.00010949,2]
[422134612,1778611839000,-265.0,0.00010135,2]
[422134657,1778611839000,-151.143,0.0001045,2]
[422134648,1778611839000,-893.0,0.00010136,2]
[422134671,1778611839000,-644.79446246,0.00010844,2]
[422134647,1778611839000,-893.0,0.00010136,2]
[422134614,1778611839000,-500.0,0.00010136,2]
[422134646,1778611839000,-893.0,0.00010136,2]
[422134615,1778611839000,-500.0,0.00010136,2]
[422134620,1778611839000,-500.0,0.00010136,2]
[422134619,1778611839000,-500.0,0.00010136,2]
[422134629,1778611839000,-893.0,0.00010136,2]
[422134621,1778611839000,-500.0,0.00010136,2]
[422134628,1778611839000,-893.0,0.00010136,2]
[422134630,1778611839000,-893.0,0.00010136,2]
[422134622,1778611839000,-500.0,0.00010136,2]
[422134631,1778611839000,-893.0,0.00010136,2]
[422134623,1778611839000,-500.0,0.00010136,2]
[422134625,1778611839000,-893.0,0.00010136,2]
[422134626,1778611839000,-893.0,0.00010136,2]
[422134624,1778611839000,-508.06469156,0.00010136,2]
[422134613,1778611839000,-500.0,0.00010136,2]
[422134642,1778611839000,-893.0,0.00010136,2]
[422134627,1778611839000,-893.0,0.00010136,2]
[422134638,1778611839000,-893.0,0.00010136,2]
[422134640,1778611839000,-893.0,0.00010136,2]
[422134639,1778611839000,-893.0,0.00010136,2]
[422134641,1778611839000,-893.0,0.00010136,2]
[422134636,1778611839000,-893.0,0.00010136,2]
[422134637,1778611839000,-893.0,0.00010136,2]
[422134634,1778611839000,-893.0,0.00010136,2]
[422134644,1778611839000,-893.0,0.00010136,2]
[422134645,1778611839000,-893.0,0.00010136,2]
[422134643,1778611839000,-893.0,0.00010136,2]
[422134633,1778611839000,-893.0,0.00010136,2]
[422134635,1778611839000,-893.0,0.00010136,2]
[422134725,1778611840000,-500.0,0.00010958,2]
[422134747,1778611840000,-500.0,0.00010958,2]
[422134741,1778611840000,-500.0,0.00010958,2]
[422134743,1778611840000,-500.0,0.00010958,2]
[422134721,1778611840000,-164.98379478,0.00010958,2]
[422134723,1778611840000,-500.0,0.00010958,2]
[422134729,1778611840000,-500.0,0.00010958,2]
[422134739,1778611840000,-1246.56,0.00010958,2]
[422134719,1778611840000,-500.0,0.00010958,2]
[422134734,1778611840000,-500.0,0.00010958,2]
[422134733,1778611840000,-500.0,0.00010958,2]
[422134757,1778611840000,-500.0,0.00010958,2]
[422134730,1778611840000,-500.0,0.00010958,2]
[422134737,1778611840000,-500.0,0.00010958,2]
[422134759,1778611840000,-500.0,0.00010958,2]
[422134762,1778611840000,-500.0,0.00010958,2]
[422134752,1778611840000,-500.0,0.00010958,2]
[422134751,1778611840000,-500.0,0.00010958,2]
[422134754,1778611840000,-500.0,0.00010958,2]
[422134761,1778611840000,-500.0,0.00010958,2]
[422134745,1778611840000,-500.0,0.00010958,2]
[422134766,1778611840000,-500.0,0.00010958,2]
[422134768,1778611840000,-500.0,0.00010958,2]
[422134764,1778611840000,-1000.0,0.00010958,2]
[422134781,1778611840000,-500.0,0.00010958,2]
[422134770,1778611840000,-500.0,0.00010958,2]
[422134784,1778611840000,-500.0,0.00010958,2]
[422134783,1778611840000,-500.0,0.00010958,2]
[422134773,1778611840000,-500.0,0.00010958,2]
[422134749,1778611840000,-500.0,0.00010958,2]
[422134727,1778611840000,-500.0,0.00010958,2]
[422134686,1778611840000,-681.887153,0.00010958,2]
[422134701,1778611840000,-500.0,0.00010958,2]
[422134786,1778611840000,-500.0,0.00010958,2]
[422134684,1778611840000,-500.0,0.00010958,2]
[422134681,1778611840000,-500.0,0.00010958,2]
[422134682,1778611840000,-500.32209666,0.00010958,2]
[422134685,1778611840000,-690.020029,0.00010958,2]
[422134688,1778611840000,-12685.728131,0.00010958,2]
[422134693,1778611840000,-500.0,0.00010958,2]
[422134694,1778611840000,-500.0,0.00010958,2]
[422134699,1778611840000,-500.0,0.00010958,2]
[422134689,1778611840000,-3361.3233,0.00010958,2]
[422134698,1778611840000,-500.0,0.00010958,2]
[422134687,1778611840000,-500.0,0.00010958,2]
[422134695,1778611840000,-500.0,0.00010958,2]
[422134697,1778611840000,-793.12,0.00010958,2]
[422134717,1778611840000,-500.0,0.00010958,2]
[422134691,1778611840000,-500.0,0.00010958,2]
[422134690,1778611840000,-500.0,0.00010958,2]
[422134696,1778611840000,-500.0,0.00010958,2]
[422134700,1778611840000,-500.0,0.00010958,2]
[422134703,1778611840000,-500.0,0.00010958,2]
[422134705,1778611840000,-500.0,0.00010958,2]
[422134702,1778611840000,-500.0,0.00010958,2]
[422134704,1778611840000,-500.0,0.00010958,2]
[422134706,1778611840000,-500.0,0.00010958,2]
[422134707,1778611840000,-500.0,0.00010958,2]
[422134708,1778611840000,-500.0,0.00010958,2]
[422134709,1778611840000,-500.0,0.00010958,2]
[422134713,1778611840000,-1268.31,0.00010958,2]
[422134715,1778611840000,-500.0,0.00010958,2]
[422134711,1778611840000,-500.0,0.00010958,2]
[422134692,1778611840000,-500.0,0.00010958,2]
[422134779,1778611840000,-500.0,0.00010958,2]
[422134820,1778611840000,-500.0,0.00010958,2]
[422134788,1778611840000,-500.0,0.00010958,2]
[422134847,1778611840000,-500.0,0.00010958,2]
[422134858,1778611840000,-500.0,0.00010958,2]
[422134860,1778611840000,-452.547799,0.00010958,2]
[422134864,1778611840000,-500.0,0.00010958,2]
[422134853,1778611840000,-500.0,0.00010958,2]
[422134856,1778611840000,-500.0,0.00010958,2]
[422134854,1778611840000,-500.0,0.00010958,2]
[422134862,1778611840000,-500.0,0.00010958,2]
[422134866,1778611840000,-500.0,0.00010958,2]
[422134870,1778611840000,-161.36949289,0.00010958,2]
[422134868,1778611840000,-500.0,0.00010958,2]
[422134872,1778611840000,-500.0,0.00010958,2]
[422134884,1778611840000,-500.0,0.00010958,2]
[422134874,1778611840000,-500.0,0.00010958,2]
[422134878,1778611840000,-500.0,0.00010958,2]
[422134886,1778611840000,-500.0,0.00010958,2]
[422134882,1778611840000,-500.0,0.00010958,2]
[422134880,1778611840000,-500.0,0.00010958,2]
[422134888,1778611840000,-500.0,0.00010958,2]
[422134891,1778611840000,-500.0,0.00010958,2]
[422134890,1778611840000,-500.0,0.00010958,2]
[422134876,1778611840000,-411.16073214,0.00010958,2]
[422134894,1778611840000,-1255.65,0.00010958,2]
[422134893,1778611840000,-500.0,0.00010958,2]
[422134899,1778611840000,-500.0,0.00010958,2]
[422134900,1778611840000,-500.0,0.00010958,2]
[422134902,1778611840000,-500.0,0.00010958,2]
[422134896,1778611840000,-1302.18,0.00010958,2]
[422134790,1778611840000,-500.0,0.00010958,2]
[422134851,1778611840000,-237.93056303,0.00010958,2]
[422134849,1778611840000,-500.0,0.00010958,2]
[422134906,1778611840000,-500.0,0.00010958,2]
[422134845,1778611840000,-500.0,0.00010958,2]
[422134772,1778611840000,-500.0,0.00010958,2]
[422134843,1778611840000,-500.0,0.00010958,2]
[422134775,1778611840000,-547.70397305,0.00010958,2]
[422134792,1778611840000,-500.0,0.00010958,2]
[422134794,1778611840000,-500.0,0.00010958,2]
[422134796,1778611840000,-500.0,0.00010958,2]
[422134807,1778611840000,-500.0,0.00010958,2]
[422134801,1778611840000,-500.0,0.00010958,2]
[422134812,1778611840000,-500.0,0.00010958,2]
[422134810,1778611840000,-500.0,0.00010958,2]
[422134809,1778611840000,-500.0,0.00010958,2]
[422134805,1778611840000,-500.0,0.00010958,2]
[422134816,1778611840000,-500.0,0.00010958,2]
[422134798,1778611840000,-500.0,0.00010958,2]
[422134814,1778611840000,-500.0,0.00010958,2]
[422134777,1778611840000,-500.0,0.00010958,2]
[422134803,1778611840000,-500.0,0.00010958,2]
[422134800,1778611840000,-500.0,0.00010958,2]
[422134839,1778611840000,-500.0,0.00010958,2]
[422134831,1778611840000,-500.0,0.00010958,2]
[422134837,1778611840000,-500.0,0.00010958,2]